{"text_format":"1","workbook":"xlsx","n_sheets":4,"sheets":["kørsel DTU-bil","Sted (2)","Sted","Årstal"],"not_rendered":{"charts":0,"images":3,"macros":1,"external_links":0,"defined_names":4,"comments":0,"pivot_tables":0},"unopened":[],"bounds":{"document_bytes":16777216,"sheet_cells":100000,"rows_first":2000,"rows_last":500,"rows_between":2000,"halvings":0,"cell_chars":16384,"cell_head_chars":4096},"cells_cut":0,"cells_raw":0,"read":"whole","date_system":"1900"}

{"sheet":"kørsel DTU-bil","index":0,"n_rows":45,"n_cols":8,"rows_kept":45,"cut":false,"hidden":false,"merged":[[35,5,38,10],[41,5,44,10],[19,2,19,10],[35,2,37,4],[41,2,43,4],[44,2,44,4],[38,2,38,4],[11,12,12,22],[31,4,31,10],[32,4,32,10],[22,2,22,4],[22,5,22,9],[29,2,29,10],[30,4,30,10],[1,2,1,10],[13,2,13,10],[14,4,14,10],[15,4,15,10],[16,4,16,10]]}
[]
[null,null,"Bemyndigelse til kørsel i DTU-bil\nmellem hjem og tjenestested"]
[]
[null,null,"Gældende for kalenderåret:",null,null,null,2022,"   (Vælg på liste)"]
[]
[]
[]
[]
[]
[]
[]
[]
[]
[null,null,"Bemyndigede (den som GIVES lov til at benytte en DTU bil til begrænset kørsel mellem hjem og tjenestested)"]
[null,null,"Institut/afdeling:"]
[null,null,"Navn:"]
[null,null,"Mailadresse:"]
[]
[null,null,"Bemyndigelsen begrundes ved følgende argumenter:"]
[]
[]
[null,null,"Bemyndigelsen gives til brug af følgende DTU-bil:"]
[null,null,"Registreringsnummer:"]
[]
[]
[]
[]
[]
[]
[null,null,"Bemyndigelsesgiver (Institutdirektør)"]
[null,null,"Institut/afdeling:"]
[null,null,"Navn:"]
[null,null,"Mailadresse:"]
[]
[null,null,"Institutdirektørs personlige underskrift"]
[null,null,null,null,null,"Underskrift"]
[]
[]
[null,null,"Dato"]
[]
[null,null,"Bemyndigedes personlige underskrift"]
[null,null,null,null,null,"Underskrift"]
[]
[]
[null,null,"Dato"]

{"sheet":"Sted (2)","index":1,"n_rows":55,"n_cols":1,"rows_kept":55,"cut":false,"hidden":true,"merged":[]}
["Sammenkædning"]
["01 DTU Compute"]
["10 DTU Fysik"]
["11 DTU Byg"]
["12 DTU Miljø"]
["22 DTU Sundhedsteknologi"]
["23 DTU Fødevareinstituttet"]
["24 DTU Veterinærinstituttet"]
["25 DTU Aqua"]
["26 DTU Kemi"]
["27 DTU Bioengineering"]
["28 DTU Kemiteknik"]
["29 DTU Biosustain"]
["30 DTU Space"]
["31 DTU Elektro"]
["33 DTU Nanotech"]
["34 DTU Fotonik"]
["35 DTU Offshore"]
["36 DTU Bioinformatik"]
["37 Center for Diagnostik"]
["38 DTU Entrepreneurship"]
["41 DTU Mekanik"]
["42 DTU Management"]
["54 DTU Business"]
["46 DTU Vindenergi"]
["47 DTU Energi"]
["48 DTU Nutech"]
["55 DTU Informationsressourcer"]
["56 DTU Nanolab"]
["60 DTU Adgangskursus"]
["62 DTU Engineering Technology"]
["63 KIC"]
["64 ØSS Samarbejdet"]
["65 DTU Learn for Life"]
["66 DTU Skylab"]
["67 DTU Learning Lab"]
["69 DeIC"]
["70 Danske Universiteter"]
["71 DTU Digital Forskningsinfrastruktur"]
["72 DeiC"]
["73 VITIS"]
["74 Teknologihistorie og LearningLab"]
["75 Uddannelsespuljer"]
["76 Afdeling for Policy og Relationer (APR)"]
["77 Afdeling for Forskning, Rådgivning og Innovation (AFRI)"]
["78 Afdeling for Kommunikation og Medier (AKM)"]
["80 Direktionen"]
["81 Patenter"]
["82 Økonomi og Regnskab (AØR)"]
["83 Uddannelse og Studerende (AUS)"]
["85 Koncern HR"]
["86 Campus Service"]
["88 IT Service (AIT)"]
["89 Fælles pulje m.v. Øk.afd."]
["91 Regnskabstekniske konti"]

{"sheet":"Sted","index":2,"n_rows":57,"n_cols":3,"rows_kept":57,"cut":false,"hidden":true,"merged":[]}
["Sted","Beskrivelse fra ØSS","Sammenkædning"]
["01","01 DTU Compute",{"$f":"A2&\" \"&B2","v":"01 01 DTU Compute"}]
["10","10 DTU Fysik","10 10 DTU Fysik"]
["11","11 DTU Byg","11 11 DTU Byg"]
["12","12 DTU Sustain","12 12 DTU Sustain"]
["22","22 DTU Sundhedsteknologi","22 22 DTU Sundhedsteknologi"]
["23","23 DTU Fødevareinstituttet","23 23 DTU Fødevareinstituttet"]
["24","24 DTU Veterinærinstituttet","24 24 DTU Veterinærinstituttet"]
["25","25 DTU Aqua","25 25 DTU Aqua"]
["26","26 DTU Kemi","26 26 DTU Kemi"]
["27","27 DTU Bioengineering","27 27 DTU Bioengineering"]
["28","28 DTU Kemiteknik","28 28 DTU Kemiteknik"]
["29","29 DTU Biosustain","29 29 DTU Biosustain"]
["30","30 DTU Space","30 30 DTU Space"]
["31","31 DTU Elektro","31 31 DTU Elektro"]
["33","33 DTU Nanotech","33 33 DTU Nanotech"]
["34","34 DTU Electro","34 34 DTU Electro"]
["35","35 DTU Offshore","35 35 DTU Offshore"]
["36","36 DTU Bioinformatik","36 36 DTU Bioinformatik"]
["37","37 Center for Diagnostik","37 37 Center for Diagnostik"]
["38","38 DTU Entrepreneurship","38 38 DTU Entrepreneurship"]
["41","41 DTU Construct","41 41 DTU Construct"]
["42","42 DTU Management","42 42 DTU Management"]
["54","54 DTU Business","54 54 DTU Business"]
["46","46 DTU Wind","46 46 DTU Wind"]
["47","47 DTU Energi","47 47 DTU Energi"]
["48","48 DTU Nutech","48 48 DTU Nutech"]
["55","55 DTU Informationsressourcer","55 55 DTU Informationsressourcer"]
["56","56 DTU Nanolab","56 56 DTU Nanolab"]
["60","60 DTU Adgangskursus","60 60 DTU Adgangskursus"]
["62","62 DTU Engineering Technology","62 62 DTU Engineering Technology"]
["63","63 KIC","63 63 KIC"]
["64","64 ØSS Samarbejdet","64 64 ØSS Samarbejdet"]
["65","65 DTU Learn for Life",{"$f":"A34&\" \"&B34","v":"65 65 DTU Learn for Life"}]
["66","66 DTU Skylab","66 66 DTU Skylab"]
["67","67 DTU Learning Lab","67 67 DTU Learning Lab"]
["69","69 DeIC","69 69 DeIC"]
["70","70 Danske Universiteter","70 70 Danske Universiteter"]
["71","71 DTU Digital Forskningsinfrastruktur","71 71 DTU Digital Forskningsinfrastruktur"]
["72","72 Forskningsnettet","72 72 Forskningsnettet"]
["73","73 VITIS","73 73 VITIS"]
["75","75 Uddannelsespuljer","75 75 Uddannelsespuljer"]
["76","76 Afdeling for Policy og Relationer (APR)","76 76 Afdeling for Policy og Relationer (APR)"]
["77","77 Afdeling for Forskning, Rådgivning og Innovation (AFRI)","77 77 Afdeling for Forskning, Rådgivning og Innovation (AFRI)"]
["78","78 Afdeling for Kommunikation og Medier (AKM)","78 78 Afdeling for Kommunikation og Medier (AKM)"]
["80","80 Direktionen","80 80 Direktionen"]
["81","81 Patenter","81 81 Patenter"]
["82","82 Økonomi og Regnskab (AØR)","82 82 Økonomi og Regnskab (AØR)"]
["74","74 Teknologihistorie og LearningLab","74 74 Teknologihistorie og LearningLab"]
["83","83 Uddannelse og Studerende (AUS)","83 83 Uddannelse og Studerende (AUS)"]
["84","84 Forskning og Relationer (AFR)","84 84 Forskning og Relationer (AFR)"]
["85","85 Koncern HR","85 85 Koncern HR"]
["86","86 Campus Service","86 86 Campus Service"]
["88","88 IT Service (AIT)","88 88 IT Service (AIT)"]
["89","89 Fælles pulje m.v. Øk.afd.","89 89 Fælles pulje m.v. Øk.afd."]
["91","91 Regnskabstekniske konti","91 91 Regnskabstekniske konti"]
["92","92 Bevillingsformål, Budget","92 92 Bevillingsformål, Budget"]

{"sheet":"Årstal","index":3,"n_rows":33,"n_cols":1,"rows_kept":33,"cut":false,"hidden":true,"merged":[]}
["år"]
[2019]
[2020]
[2021]
[2022]
[2023]
[2024]
[2025]
[2026]
[2027]
[2028]
[2029]
[2030]
[2031]
[2032]
[2033]
[2034]
[2035]
[2036]
[2037]
[2038]
[2039]
[2040]
[2041]
[2042]
[2043]
[2044]
[2045]
[2046]
[2047]
[2048]
[2049]
[2050]